[Event "4th ChessMates Murmansk 2020"]
[Site "Murmansk"]
[Date "2020.03.14"]
[Round "4.16"]
[White "Shilnikov, Anton"]
[Black "Kien, Clovis"]
[Result "0-1"]
[ECO "B20"]
[WhiteElo "1769"]
[BlackElo "1765"]
[Annotator "NA RC"]
[PlyCount "68"]
[EventDate "2020.03.13"]
[EventType "team-tourn"]
[EventCountry "RUS"]
[SourceTitle "playchess.com"]
[Source "ChessBase"]
[SourceQuality "1"]
[TimeControl "5400+30"]

1. e4 {[%emt 0:00:00]} c5 {[%emt 0:02:01]} 2. a3 {[%emt 0:00:00]} g6 {[%emt 0:02:50]} 3. b4 {[%emt 0:00:00]} Bg7 {[%emt 0:00:10]} 4. c3 {[%emt 0:00:13]} d6 {[%emt 0:03:05]} 5. Nf3 {[%emt 0:01:02]} e6 {[%emt 0:09:31]} 6. bxc5 {[%emt 0:03:41]} dxc5 {[%emt 0:00:19]} 7. Bc4 {[%emt 0:00:53]} Nc6 {[%emt 0:04:03]} 8. O-O {[%emt 0:01:41]} Nge7 {[%emt 0:02:12]} 9. Re1 {[%emt 0:04:13]} Qc7 {[%emt 0:11:07]} 10. d3 {[%emt 0:04:01]} O-O {[%emt 0:00:46]} 11. Be3 {[%emt 0:00:16]} b6 {[%emt 0:00:21]} 12. Qc1 {[%emt 0:01:54]} Rd8 {[%emt 0:02:53]} 13. Rd1 {[%emt 0:01:54]} Na5 {[%emt 0:11:09]} 14. Ba2 {[%emt 0:01:51]} Ba6 {[%emt 0:00:33]} 15. d4 {[%emt 0:01:27]} Be2 {[%emt 0:01:26]} 16. Bf4 {[%emt 0:01:48]} Qb7 {[%emt 0:03:22]} 17. e5 {[%emt 0:07:26]} Bxd1 {[%emt 0:05:09]} 18. Qxd1 {[%emt 0:00:04]} cxd4 {[%emt 0:01:54]} 19. cxd4 {[%emt 0:00:20]} Rac8 {[%emt 0:07:55]} 20. Nbd2 {[%emt 0:04:08]} Nf5 {[%emt 0:00:45]} 21. Bg5 {[%emt 0:05:14]} Rd7 {[%emt 0:00:15]} 22. Nf1 {[%emt 0:04:23]} Nxd4 {[%emt 0:03:49]} 23. Nxd4 {[%emt 0:03:25]} Bxe5 {[%emt 0:00:09]} 24. Qg4 {[%emt 0:04:13]} Rxd4 {[%emt 0:03:23]} 25. Qh3 {[%emt 0:01:30]} Nc4 {[%emt 0:03:27]} 26. Re1 {[%emt 0:03:30]} Bg7 {[%emt 0:02:56]} 27. Ng3 {[%emt 0:03:17]} Qd5 {[%emt 0:00:52]} 28. Be3 {[%emt 0:04:15]} Rd1 {[%emt 0:00:21]} 29. Rf1 {[%emt 0:02:05]} Qd3 {[%emt 0:00:16]} 30. Bxc4 {[%emt 0:07:11]} Rxc4 {[%emt 0:00:28]} 31. Rxd1 {[%emt 0:01:05]} Qxd1+ {[%emt 0:00:02]} 32. Nf1 {[%emt 0:00:06]} Qg4 {[%emt 0:01:11]} 33. Nd2 {[%emt 0:02:16]} Rc1+ {[%emt 0:00:35]} 34. Nf1 {[%emt 0:00:05]} Qxh3 {[%emt 0:00:05]} 0-1

[Event "4th ChessMates Murmansk 2020"]
[Site "Murmansk"]
[Date "2020.03.14"]
[Round "4.18"]
[White "Chervyakova, Tatiana"]
[Black "Fougerat, Emma"]
[Result "1-0"]
[ECO "B20"]
[WhiteElo "1489"]
[BlackElo "1668"]
[Annotator "NA RC"]
[PlyCount "121"]
[EventDate "2020.03.13"]
[EventType "team-tourn"]
[EventCountry "RUS"]
[SourceTitle "playchess.com"]
[Source "ChessBase"]
[SourceQuality "1"]
[TimeControl "5400+30"]

1. e4 {[%emt 0:00:00]} c5 {[%emt 0:00:00]} 2. d3 {[%emt 0:00:00]} d6 {[%emt 0:00:11]} 3. Be2 {[%emt 0:00:26]} Nf6 {[%emt 0:00:10]} 4. f4 {[%emt 0:00:32]} g6 {[%emt 0:01:04]} 5. Nf3 {[%emt 0:00:15]} Bg7 {[%emt 0:00:22]} 6. O-O {[%emt 0:00:45]} O-O {[%emt 0:00:13]} 7. c3 {[%emt 0:01:56]} Nc6 {[%emt 0:02:37]} 8. Kh1 {[%emt 0:02:04]} b5 {[%emt 0:02:57]} 9. Be3 {[%emt 0:20:12]} b4 {[%emt 0:07:11]} 10. Qc2 {[%emt 0:07:14]} Bb7 {[%emt 0:04:03]} 11. Nbd2 {[%emt 0:04:44]} a5 {[%emt 0:03:20]} 12. a4 {[%emt 0:07:22]} Qc7 {[%emt 0:08:20]} 13. d4 {[%emt 0:07:17]} cxd4 {[%emt 0:08:45]} 14. cxd4 {[%emt 0:00:47]} Rfc8 {[%emt 0:01:43]} 15. Qb3 {[%emt 0:07:24]} Qd7 {[%emt 0:04:45]} 16. d5 {[%emt 0:02:40]} Nb8 {[%emt 0:12:03]} 17. Bb5 {[%emt 0:04:52]} Qc7 {[%emt 0:04:49]} 18. Nc4 {[%emt 0:06:56]} Nbd7 {[%emt 0:01:55]} 19. Qd3 {[%emt 0:01:56]} Nc5 {[%emt 0:00:52]} 20. Bxc5 {[%emt 0:01:21]} Qxc5 {[%emt 0:00:43]} 21. Nfd2 {[%emt 0:01:44]} Qc7 {[%emt 0:07:45]} 22. Rac1 {[%emt 0:01:10]} h5 {[%emt 0:06:33]} 23. Nb3 {[%emt 0:01:10]} Qd8 {[%emt 0:00:46]} 24. Nd4 {[%emt 0:03:56]} Kf8 {[%emt 0:03:08]} 25. Nc6 {[%emt 0:02:08]} Qc7 {[%emt 0:01:54]} 26. Nd4 {[%emt 0:02:12]} Kg8 {[%emt 0:00:47]} 27. Rc2 {[%emt 0:01:43]} Qd8 {[%emt 0:01:56]} 28. Rfc1 {[%emt 0:01:54]} Ng4 {[%emt 0:00:45]} 29. h3 {[%emt 0:00:43]} Nf6 {[%emt 0:00:24]} 30. Nc6 {[%emt 0:00:52]} Bxc6 {[%emt 0:03:01]} 31. Bxc6 {[%emt 0:00:16]} Rab8 {[%emt 0:01:56]} 32. Kh2 {[%emt 0:01:10]} Nd7 {[%emt 0:00:28]} 33. Bxd7 {[%emt 0:00:17]} Rxc4 {[%emt 0:00:53]} 34. Qxc4 {[%emt 0:01:52]} Qxd7 {[%emt 0:00:01]} 35. Qc6 {[%emt 0:00:31]} Qa7 {[%emt 0:00:37]} 36. Qc7 {[%emt 0:00:49]} Qxc7 {[%emt 0:00:16]} 37. Rxc7 {[%emt 0:00:09]} Bxb2 {[%emt 0:00:02]} 38. Rc8+ {[%emt 0:00:54]} Rxc8 {[%emt 0:00:02]} 39. Rxc8+ {[%emt 0:00:03]} Kg7 {[%emt 0:00:39]} 40. Ra8 {[%emt 0:00:19]} Bc3 {[%emt 0:00:38]} 41. Rxa5 {[%emt 0:00:07]} b3 {[%emt 0:00:00]} 42. Rb5 {[%emt 0:00:02]} b2 {[%emt 0:00:01]} 43. a5 {[%emt 0:00:42]} Bxa5 {[%emt 0:00:22]} 44. Rxb2 {[%emt 0:00:06]} Bc3 {[%emt 0:00:22]} 45. Rc2 {[%emt 0:01:15]} Bf6 {[%emt 0:00:20]} 46. Re2 {[%emt 0:00:49]} e5 {[%emt 0:02:53]} 47. dxe6 {[%emt 0:00:12]} fxe6 {[%emt 0:00:01]} 48. Rd2 {[%emt 0:00:53]} Be7 {[%emt 0:00:02]} 49. g4 {[%emt 0:00:25]} hxg4 {[%emt 0:00:22]} 50. hxg4 {[%emt 0:00:12]} e5 {[%emt 0:00:53]} 51. fxe5 {[%emt 0:00:50]} dxe5 {[%emt 0:00:04]} 52. Kg3 {[%emt 0:01:39]} Bg5 {[%emt 0:00:54]} 53. Rf2 {[%emt 0:01:23]} Bf4+ {[%emt 0:00:10]} 54. Rxf4 {[%emt 0:00:12]} exf4+ {[%emt 0:00:01]} 55. Kxf4 {[%emt 0:00:12]} Kf7 {[%emt 0:00:15]} 56. Kg5 {[%emt 0:00:09]} Kg7 {[%emt 0:00:12]} 57. e5 {[%emt 0:00:08]} Kf7 {[%emt 0:00:07]} 58. e6+ {[%emt 0:00:12]} Kxe6 {[%emt 0:00:02]} 59. Kxg6 {[%emt 0:00:05]} Ke7 {[%emt 0:00:16]} 60. Kg7 {[%emt 0:00:46]} Ke6 {[%emt 0:00:24]} 61. g5 {[%emt 0:00:19]} 1-0

[Event "4th ChessMates Murmansk 2020"]
[Site "Murmansk"]
[Date "2020.03.14"]
[Round "4.19"]
[White "Matsumura, Cocoro"]
[Black "Filimonov, Viktor"]
[Result "1-0"]
[ECO "B12"]
[WhiteElo "1896"]
[BlackElo "1481"]
[Annotator "NA RC"]
[PlyCount "118"]
[EventDate "2020.03.13"]
[EventType "team-tourn"]
[EventCountry "RUS"]
[SourceTitle "playchess.com"]
[Source "ChessBase"]
[SourceQuality "1"]
[TimeControl "5400+30"]

{[%evp 8,93,18,32767,0,0,32767,-7,-6,-49,32767,32767,32767,-110,-110,32767,32767,-124,4,0,53,-28,29,47,43,14,59,50,54,26,0,0,-3,-6,0,-41,0,-21,-25,-29,-36,-49,14,25,32767,32767,32767,32767,32767,32767,32767,32767,0,-11,-36,-19,-24,-119,7,8,4,2,1,0,37,0,3,5,20,12,8,3,30,16,34,8,89,0,0,0,0,0,118,120,130,117,117,16]} 1. e4 {[%emt 0:00:00]} c6 {[%emt 0:00:00]} 2. d4 {[%emt 0:00:00]} d5 {[%emt 0:00:03]} 3. e5 {[%emt 0:00:00]} c5 {[%emt 0:00:11]} 4. dxc5 {[%emt 0:00:43]} e6 {[%emt 0:00:10]} 5. c4 {[%emt 0:06:22]} Bxc5 {[%emt 0:04:02]} 6. cxd5 {[%emt 0:02:04] B12: Caro-Kann: Advance Variation.} exd5 {[%emt 0:01:55]} 7. Nf3 {[%emt 0:02:16]} Nc6 {[%emt 0:02:35]} 8. Bd3 {[%emt 0:04:13]} Nge7 {[%emt 0:03:32]} 9. O-O {[%emt 0:02:11]} Bg4 {[%emt 0:01:49] [#]} 10. Re1 $146 {[%emt 0:03:45]} (10. Nc3 $15) ({Predecessor:} 10. Bf4 Bd4 11. Nbd2 Bxe5 12. Qa4 Bxf4 13. Qxf4 Bxf3 14. Nxf3 h6 15. Rfe1 O-O 16. b4 {0-1 (52) Portmann,D (2090)-Siegel,G (2475) Graechen 1999}) 10... Qb6 {[%emt 0:01:54]} 11. Be3 {[%emt 0:15:33]} Bxe3 {[%emt 0:04:13]} 12. Rxe3 {[%emt 0:02:51]} O-O-O {[%emt 0:02:52]} ({But not} 12... Qxb2 $6 13. Nbd2 $11) (12... Bxf3 $17 13. Rxf3 Qxb2) 13. Nbd2 {[%emt 0:10:05]} Ng6 {[%emt 0:02:41]} 14. Qa4 {[%emt 0:06:34]} (14. Bxg6 $14 hxg6 15. h3 Bxf3 16. Nxf3) 14... Bd7 {[%emt 0:02:34]} 15. Rc1 {[%emt 0:03:56]} Kb8 $1 {[%emt 0:03:08]} 16. Qa3 {[%emt 0:00:40]} Qb4 {[%emt 0:04:13]} (16... Be6 $11) 17. Qxb4 {[%emt 0:08:46]} Nxb4 {[%emt 0:00:07]} 18. Bb1 {[%emt 0:00:33]} (18. Bxg6 $5 hxg6 19. a3 $11) 18... Rc8 {[%emt 0:01:40]} 19. Nb3 {[%emt 0:12:52]} Rxc1+ {[%emt 0:02:41]} 20. Nxc1 {[%emt 0:00:02]} Rc8 {[%emt 0:01:53]} 21. Re1 {[%emt 0:05:37]} Nf4 {[%emt 0:03:48]} 22. g3 {[%emt 0:01:53] [#]} Rxc1 $1 {[%emt 0:03:15]} 23. gxf4 {[%emt 0:00:34]} Rc4 {[%emt 0:00:40]} 24. f5 {[%emt 0:05:01]} Bxf5 {[%emt 0:09:05]} 25. Bxf5 {[%emt 0:01:11]} Rf4 {[%emt 0:00:09]} 26. Bxh7 {[%emt 0:01:24]} Rxf3 {[%emt 0:00:20]} 27. a3 {[%emt 0:00:35]} Nc6 {[%emt 0:00:37]} 28. Bb1 {[%emt 0:01:14]} d4 {[%emt 0:01:46]} 29. Kg2 {[%emt 0:01:34]} Rb3 {[%emt 0:01:36]} 30. Ba2 {[%emt 0:01:04]} Rxb2 {[%emt 0:00:20]} 31. Bxf7 {[%emt 0:00:05]} Kc7 {[%emt 0:00:57]} 32. Kf3 {[%emt 0:01:22]} (32. Bd5 $11) 32... Kd8 {[%emt 0:01:08]} ({Better is} 32... d3 $17 33. Bd5 d2) 33. Bd5 {[%emt 0:00:33]} Ke7 {[%emt 0:01:03]} 34. Bxc6 {[%emt 0:00:28]} bxc6 {[%emt 0:00:07]} 35. Rg1 {[%emt 0:00:43]} Kf8 {[%emt 0:02:08]} 36. Ke4 {[%emt 0:00:37]} (36. Rc1 $14) 36... c5 {[%emt 0:02:03]} 37. f4 {[%emt 0:00:21]} Rxh2 {[%emt 0:00:50]} 38. Rc1 {[%emt 0:00:34]} Re2+ {[%emt 0:00:50]} 39. Kf5 {[%emt 0:00:28]} Kf7 {[%emt 0:01:07]} 40. Rxc5 {[%emt 0:00:15]} g6+ {[%emt 0:00:18]} 41. Kg4 {[%emt 0:00:27]} d3 {[%emt 0:00:48]} (41... Ke6 $11 {keeps the balance.}) 42. Rc7+ {[%emt 0:00:54]} (42. Rd5 $16) 42... Ke6 {[%emt 0:00:21]} 43. Rxa7 {[%emt 0:00:32]} Re1 {[%emt 0:00:13]} 44. Ra6+ {[%emt 0:00:07]} Kf7 {[%emt 0:00:05]} (44... Kd5 $11 {remains equal.}) 45. Rd6 {[%emt 0:00:09]} Rd1 {[%emt 0:00:16]} 46. Kf3 {[%emt 0:00:19]} d2 {[%emt 0:00:24]} 47. Ke2 $11 {[%emt 0:00:35]} (47. Ke3 $16) 47... Ra1 {[%emt 0:00:14]} 48. Rxd2 {[%emt 0:00:17]} Rxa3 {[%emt 0:00:11]} 49. Rd3 {[%emt 0:00:11]} Ra6 {[%emt 0:00:37]} 50. Kf3 {[%emt 0:00:21]} Ra1 {[%emt 0:00:36]} 51. Ke4 {[%emt 0:00:47]} Rf1 {[%emt 0:00:28]} 52. Rd4 {[%emt 0:00:21]} Ke6 {[%emt 0:00:19]} 53. Rd6+ {[%emt 0:00:17]} Kf7 {[%emt 0:00:05]} 54. Rf6+ {[%emt 0:00:16]} Kg7 {[%emt 0:00:08]} 55. Kd5 {[%emt 0:00:16]} Ra1 {[%emt 0:00:25]} 56. Rc6 {[%emt 0:01:48]} Ra7 {[%emt 0:00:25]} 57. Kd6 {[%emt 0:01:12]} Ra1 {[%emt 0:00:48]} 58. Kd7 {[%emt 0:00:25]} Kf7 {[%emt 0:00:31]} 59. e6+ {[%emt 0:00:17]} Kg7 1-0

[Event "4th ChessMates Murmansk 2020"]
[Site "Murmansk"]
[Date "2020.03.14"]
[Round "4.20"]
[White "Simakov, Vadim"]
[Black "Ider, Bayar"]
[Result "0-1"]
[ECO "B22"]
[WhiteElo "1605"]
[BlackElo "1730"]
[Annotator "NA RC"]
[PlyCount "98"]
[EventDate "2020.03.13"]
[EventType "team-tourn"]
[EventCountry "RUS"]
[SourceTitle "playchess.com"]
[Source "ChessBase"]
[SourceQuality "1"]
[TimeControl "5400+30"]

1. e4 {[%emt 0:00:00]} c5 {[%emt 0:00:00]} 2. c3 {[%emt 0:00:00]} d5 {[%emt 0:00:00]} 3. exd5 {[%emt 0:00:00]} Qxd5 {[%emt 0:00:00]} 4. d4 {[%emt 0:00:19]} Nf6 {[%emt 0:00:15]} 5. Nf3 {[%emt 0:00:35]} Nc6 {[%emt 0:01:12]} 6. Be2 {[%emt 0:01:14]} e6 {[%emt 0:01:30]} 7. O-O {[%emt 0:01:54]} cxd4 {[%emt 0:01:12]} 8. cxd4 {[%emt 0:02:09]} Be7 {[%emt 0:01:33]} 9. Nc3 {[%emt 0:02:36]} Qd8 {[%emt 0:00:05]} 10. Bf4 {[%emt 0:02:14]} a6 {[%emt 0:00:14]} 11. h3 {[%emt 0:02:21]} O-O {[%emt 0:00:11]} 12. Rc1 {[%emt 0:01:59]} Nb4 {[%emt 0:15:39]} 13. a3 {[%emt 0:07:18]} Nbd5 {[%emt 0:00:27]} 14. Nxd5 {[%emt 0:01:41]} Nxd5 {[%emt 0:00:05]} 15. Bg3 {[%emt 0:03:04]} b5 {[%emt 0:05:03]} 16. Bd3 {[%emt 0:03:07]} Bb7 {[%emt 0:02:01]} 17. Qe2 {[%emt 0:03:43]} Bd6 {[%emt 0:09:45]} 18. Qe4 {[%emt 0:02:59]} g6 {[%emt 0:00:34]} 19. Be5 {[%emt 0:03:13]} Bxe5 {[%emt 0:07:00]} 20. dxe5 {[%emt 0:01:23]} Qe7 {[%emt 0:04:34]} 21. Qg4 {[%emt 0:01:43]} f5 {[%emt 0:02:29]} 22. exf6 {[%emt 0:01:16]} Nxf6 {[%emt 0:00:08]} 23. Qg5 {[%emt 0:01:30]} Bxf3 {[%emt 0:00:21]} 24. gxf3 {[%emt 0:00:21]} Qg7 {[%emt 0:00:12]} 25. Rc6 {[%emt 0:01:18]} Nd5 {[%emt 0:03:36]} 26. Be4 {[%emt 0:03:39]} Nf4 {[%emt 0:00:14]} 27. Kh2 {[%emt 0:02:11]} Rae8 {[%emt 0:07:57]} 28. b4 {[%emt 0:01:43]} h6 {[%emt 0:05:22]} 29. Qg4 {[%emt 0:02:03]} g5 {[%emt 0:02:50]} 30. Rc5 {[%emt 0:01:20]} Rc8 {[%emt 0:05:33]} 31. Rfc1 {[%emt 0:02:39]} Rxc5 {[%emt 0:00:36]} 32. Rxc5 {[%emt 0:00:09]} Qd4 {[%emt 0:02:16]} 33. Qg1 {[%emt 0:03:27]} Ne2 {[%emt 0:13:09]} 34. Qe1 {[%emt 0:00:59]} Nf4 {[%emt 0:01:00]} 35. Qe3 {[%emt 0:01:35]} Qd6 {[%emt 0:00:37]} 36. Rc6 {[%emt 0:01:01]} Qb8 {[%emt 0:02:30]} 37. Rb6 {[%emt 0:01:52]} Qc7 {[%emt 0:01:30]} 38. Rb7 {[%emt 0:01:27]} Qd6 {[%emt 0:02:18]} 39. Bh7+ {[%emt 0:00:35]} Kh8 {[%emt 0:00:08]} 40. Qc3+ {[%emt 0:00:39]} e5 {[%emt 0:00:05]} 41. Be4 {[%emt 0:01:30]} Qe6 {[%emt 0:00:19]} 42. Rh7+ {[%emt 0:01:29]} Kg8 {[%emt 0:00:05]} 43. Bd5 {[%emt 0:02:40]} Nxd5 {[%emt 0:00:27]} 44. Qc2 {[%emt 0:00:45]} Nf4 {[%emt 0:00:18]} 45. Rxh6 {[%emt 0:02:25]} Qxh6 {[%emt 0:00:08]} 46. Qf5 {[%emt 0:00:18]} Rxf5 {[%emt 0:00:08]} 47. h4 {[%emt 0:00:09]} Qxh4+ {[%emt 0:00:05]} 48. Kg1 {[%emt 0:00:05]} Nh3+ {[%emt 0:00:11]} 49. Kf1 {[%emt 0:00:05]} Qxf2# {[%emt 0:00:05]} 0-1

[Event "4th ChessMates Murmansk 2020"]
[Site "Murmansk"]
[Date "2020.03.14"]
[Round "4.24"]
[White "Mamoshin, Oleg"]
[Black "Timoshenko, Fedor"]
[Result "1-0"]
[ECO "C65"]
[WhiteElo "1648"]
[BlackElo "1621"]
[Annotator "NA RC"]
[PlyCount "57"]
[EventDate "2020.03.13"]
[EventType "team-tourn"]
[EventCountry "RUS"]
[SourceTitle "playchess.com"]
[Source "ChessBase"]
[SourceQuality "1"]
[TimeControl "5400+30"]

1. e4 {[%emt 0:00:00]} e5 {[%emt 0:00:00]} 2. Nf3 {[%emt 0:00:00]} Nc6 {[%emt 0:00:00]} 3. Bb5 {[%emt 0:00:00]} Nf6 {[%emt 0:00:00]} 4. d3 {[%emt 0:00:09]} Be7 {[%emt 0:00:09]} 5. Bxc6 {[%emt 0:00:34]} dxc6 {[%emt 0:00:13]} 6. Nxe5 {[%emt 0:00:47]} O-O {[%emt 0:00:17]} 7. O-O {[%emt 0:01:38]} Re8 {[%emt 0:00:47]} 8. Nf3 {[%emt 0:01:38]} Bg4 {[%emt 0:00:13]} 9. h3 {[%emt 0:01:21]} Bh5 {[%emt 0:00:40]} 10. Bf4 {[%emt 0:03:20]} Qd7 {[%emt 0:02:02]} 11. Nbd2 {[%emt 0:09:06]} Rad8 {[%emt 0:03:02]} 12. Re1 {[%emt 0:11:07]} Bb4 {[%emt 0:08:32]} 13. c3 {[%emt 0:13:27]} Bc5 {[%emt 0:13:26]} 14. d4 {[%emt 0:00:24]} Bb6 {[%emt 0:01:58]} 15. Bg5 {[%emt 0:08:48]} Rc8 {[%emt 0:04:22]} 16. Bxf6 {[%emt 0:04:00]} gxf6 {[%emt 0:00:37]} 17. Nc4 {[%emt 0:02:55]} Kh8 {[%emt 0:01:26]} 18. Nxb6 {[%emt 0:01:38]} axb6 {[%emt 0:00:15]} 19. Qd3 {[%emt 0:12:00]} Rg8 {[%emt 0:01:04]} 20. Kh2 {[%emt 0:01:35]} Qd6+ {[%emt 0:02:25]} 21. Kh1 {[%emt 0:04:58]} Rcd8 {[%emt 0:02:43]} 22. Qe3 {[%emt 0:01:51]} Rde8 {[%emt 0:01:41]} 23. Nh4 {[%emt 0:00:49]} Qd7 {[%emt 0:06:17]} 24. Qf4 {[%emt 0:04:48]} Re6 {[%emt 0:06:45]} 25. Re3 {[%emt 0:02:04]} Rg5 {[%emt 0:03:16]} 26. Nf5 {[%emt 0:02:57]} Qd8 {[%emt 0:03:54]} 27. g4 {[%emt 0:01:46]} Bg6 {[%emt 0:04:42]} 28. h4 {[%emt 0:00:08]} Bxf5 {[%emt 0:00:18]} 29. gxf5 {[%emt 0:02:25]} 1-0

[Event "4th ChessMates Murmansk 2020"]
[Site "Murmansk"]
[Date "2020.03.14"]
[Round "4.25"]
[White "Putar, Lara"]
[Black "Khripachenko, Alexander"]
[Result "1-0"]
[ECO "D77"]
[WhiteElo "1799"]
[BlackElo "1773"]
[Annotator "NA RC"]
[PlyCount "55"]
[EventDate "2020.03.13"]
[EventType "team-tourn"]
[EventCountry "RUS"]
[SourceTitle "playchess.com"]
[Source "ChessBase"]
[SourceQuality "1"]
[TimeControl "5400+30"]

1. d4 {[%emt 0:00:00]} Nf6 {[%emt 0:00:00]} 2. c4 {[%emt 0:00:00]} g6 {[%emt 0:00:00]} 3. Nf3 {[%emt 0:00:00]} Bg7 {[%emt 0:00:00]} 4. g3 {[%emt 0:00:00]} d5 {[%emt 0:00:03]} 5. Bg2 {[%emt 0:00:48]} O-O {[%emt 0:00:15]} 6. O-O {[%emt 0:00:05]} dxc4 {[%emt 0:00:14]} 7. Na3 {[%emt 0:01:40]} c3 {[%emt 0:00:27]} 8. bxc3 {[%emt 0:00:17]} c5 {[%emt 0:00:04]} 9. Rb1 {[%emt 0:02:58]} Nc6 {[%emt 0:08:40]} 10. Nc2 {[%emt 0:11:45]} Qa5 {[%emt 0:03:39]} 11. d5 {[%emt 0:03:08]} Rd8 {[%emt 0:05:16]} 12. c4 {[%emt 0:02:11]} Qxa2 {[%emt 0:11:40]} 13. Ra1 {[%emt 0:01:30]} Qxc4 {[%emt 0:03:38]} 14. Nd2 {[%emt 0:00:50]} Qc3 {[%emt 0:00:28]} 15. dxc6 {[%emt 0:01:47]} Bf5 {[%emt 0:05:14]} 16. cxb7 {[%emt 0:06:38]} Rab8 {[%emt 0:00:29]} 17. e4 {[%emt 0:04:00]} Be6 {[%emt 0:02:03]} 18. Ra3 {[%emt 0:07:11]} Qe5 {[%emt 0:00:10]} 19. Rxa7 {[%emt 0:02:12]} c4 {[%emt 0:00:53]} 20. Nf3 {[%emt 0:03:07]} Qc7 {[%emt 0:06:32]} 21. Bf4 {[%emt 0:01:11]} Qb6 {[%emt 0:00:30]} 22. Be3 {[%emt 0:01:20]} Qc7 {[%emt 0:00:16]} 23. Qb1 {[%emt 0:00:41]} Nd7 {[%emt 0:01:17]} 24. Bf4 {[%emt 0:04:23]} Ne5 {[%emt 0:00:07]} 25. Nxe5 {[%emt 0:06:58]} Bxe5 {[%emt 0:00:05]} 26. Be3 {[%emt 0:00:51]} Qd6 {[%emt 0:02:20]} 27. Bb6 {[%emt 0:02:27]} Rd7 {[%emt 0:01:20]} 28. Be3 {[%emt 0:06:32]} 1-0

[Event "4th ChessMates Murmansk 2020"]
[Site "Murmansk"]
[Date "2020.03.14"]
[Round "4.26"]
[White "Morar, Kirill"]
[Black "Solovyev, Vladislav B."]
[Result "1-0"]
[ECO "C77"]
[WhiteElo "1271"]
[BlackElo "1410"]
[Annotator "NA RC"]
[PlyCount "105"]
[EventDate "2020.03.13"]
[EventType "team-tourn"]
[EventCountry "RUS"]
[SourceTitle "playchess.com"]
[Source "ChessBase"]
[SourceQuality "1"]
[TimeControl "5400+30"]

1. e4 {[%emt 0:00:00]} e5 {[%emt 0:00:00]} 2. Nf3 {[%emt 0:00:00]} Nc6 {[%emt 0:00:00]} 3. Bb5 {[%emt 0:00:00]} a6 {[%emt 0:00:00]} 4. Ba4 {[%emt 0:00:00]} Nf6 {[%emt 0:00:00]} 5. d3 {[%emt 0:00:00]} b5 {[%emt 0:00:02]} 6. Bb3 {[%emt 0:00:00]} d6 {[%emt 0:00:33]} 7. O-O {[%emt 0:00:00]} Be7 {[%emt 0:00:05]} 8. h3 {[%emt 0:00:03]} Na5 {[%emt 0:00:14]} 9. c3 {[%emt 0:00:12]} Nxb3 {[%emt 0:00:32]} 10. Qxb3 {[%emt 0:00:23]} Be6 {[%emt 0:00:06]} 11. Qc2 {[%emt 0:00:06]} O-O {[%emt 0:00:07]} 12. d4 {[%emt 0:00:20]} exd4 {[%emt 0:00:31]} 13. Nxd4 {[%emt 0:00:41]} c5 {[%emt 0:00:19]} 14. Nc6 {[%emt 0:00:59]} Qc7 {[%emt 0:00:08]} 15. Nxe7+ {[%emt 0:01:20]} Qxe7 {[%emt 0:00:05]} 16. Bg5 {[%emt 0:05:52]} Bd7 {[%emt 0:00:16]} 17. Nd2 {[%emt 0:00:42]} h6 {[%emt 0:00:04]} 18. Bh4 {[%emt 0:00:13]} Rfe8 {[%emt 0:00:18]} 19. Rfe1 {[%emt 0:00:54]} Qe6 {[%emt 0:00:30]} 20. Bxf6 {[%emt 0:27:10]} Qxf6 {[%emt 0:00:08]} 21. Rad1 {[%emt 0:00:12]} Qg6 {[%emt 0:00:26]} 22. Qd3 {[%emt 0:00:49]} d5 {[%emt 0:05:41]} 23. Nf1 {[%emt 0:02:15]} Rxe4 {[%emt 0:03:39]} 24. Rxe4 {[%emt 0:02:32]} Bf5 {[%emt 0:00:03]} 25. Ng3 {[%emt 0:02:43]} Bxe4 {[%emt 0:00:52]} 26. Nxe4 {[%emt 0:00:40]} Qxe4 {[%emt 0:00:28]} 27. Qxd5 {[%emt 0:02:00]} Qxd5 {[%emt 0:01:11]} 28. Rxd5 {[%emt 0:00:15]} c4 {[%emt 0:00:04]} 29. Kf1 {[%emt 0:00:27]} Kf8 {[%emt 0:00:04]} 30. Rd7 {[%emt 0:00:19]} Re8 {[%emt 0:00:17]} 31. Rd6 {[%emt 0:03:03]} Re6 {[%emt 0:00:20]} 32. Rxe6 {[%emt 0:09:24]} fxe6 {[%emt 0:00:04]} 33. Ke2 {[%emt 0:00:03]} Ke7 {[%emt 0:00:15]} 34. Ke3 {[%emt 0:00:05]} Kd6 {[%emt 0:00:10]} 35. Ke4 {[%emt 0:00:06]} a5 {[%emt 0:01:16]} 36. a3 {[%emt 0:00:12]} g6 {[%emt 0:04:18]} 37. f4 {[%emt 0:00:50]} g5 {[%emt 0:01:19]} 38. g3 {[%emt 0:06:54]} gxf4 {[%emt 0:05:58]} 39. gxf4 {[%emt 0:01:10]} h5 {[%emt 0:00:38]} 40. h4 {[%emt 0:00:08]} a4 {[%emt 0:00:56]} 41. Kd4 {[%emt 0:00:11]} Kc6 {[%emt 0:00:16]} 42. Ke5 {[%emt 0:00:12]} Kd7 {[%emt 0:00:05]} 43. Kf6 {[%emt 0:00:33]} Kd6 {[%emt 0:00:05]} 44. Kg5 {[%emt 0:00:05]} Kd5 {[%emt 0:00:12]} 45. Kxh5 {[%emt 0:00:08]} Ke4 {[%emt 0:00:03]} 46. Kg5 {[%emt 0:00:14]} Kd3 {[%emt 0:00:05]} 47. h5 {[%emt 0:00:03]} Kc2 {[%emt 0:00:05]} 48. h6 {[%emt 0:00:26]} Kxb2 {[%emt 0:00:04]} 49. h7 {[%emt 0:00:03]} Kxa3 {[%emt 0:00:16]} 50. h8=Q {[%emt 0:00:07]} Kb3 {[%emt 0:01:11]} 51. Qb8 {[%emt 0:08:32]} a3 {[%emt 0:00:17]} 52. Qxb5+ {[%emt 0:00:06]} Kxc3 {[%emt 0:00:05]} 53. Qa4 {[%emt 0:00:08]} 1-0

[Event "4th ChessMates Murmansk 2020"]
[Site "Murmansk"]
[Date "2020.03.14"]
[Round "4.27"]
[White "Iarovoi, Dmitrii"]
[Black "Abbasov, Aziz"]
[Result "1/2-1/2"]
[ECO "D02"]
[WhiteElo "1346"]
[BlackElo "1478"]
[Annotator "NA RC"]
[PlyCount "34"]
[EventDate "2020.03.13"]
[EventType "team-tourn"]
[EventCountry "RUS"]
[SourceTitle "playchess.com"]
[Source "ChessBase"]
[SourceQuality "1"]
[TimeControl "5400+30"]

1. d4 {[%emt 0:00:00]} Nf6 {[%emt 0:00:00]} 2. Nf3 {[%emt 0:00:00]} d5 {[%emt 0:00:00]} 3. Bf4 {[%emt 0:00:00]} c6 {[%emt 0:00:00]} 4. e3 {[%emt 0:00:00]} e6 {[%emt 0:00:14]} 5. Nbd2 {[%emt 0:00:00]} Bd6 {[%emt 0:00:10]} 6. Bxd6 {[%emt 0:00:07]} Qxd6 {[%emt 0:00:05]} 7. c4 {[%emt 0:00:04]} O-O {[%emt 0:02:03]} 8. Qc2 {[%emt 0:01:12]} b6 {[%emt 0:02:38]} 9. Be2 {[%emt 0:00:21]} Bb7 {[%emt 0:00:34]} 10. cxd5 {[%emt 0:00:11]} cxd5 {[%emt 0:02:19]} 11. O-O {[%emt 0:00:19]} Nbd7 {[%emt 0:02:21]} 12. h3 {[%emt 0:01:03]} Rfc8 {[%emt 0:04:15]} 13. Qb1 {[%emt 0:04:06]} Rc7 {[%emt 0:05:14]} 14. Rc1 {[%emt 0:00:11]} Rxc1+ {[%emt 0:02:36]} 15. Qxc1 {[%emt 0:00:03]} Rc8 {[%emt 0:00:05]} 16. Qd1 {[%emt 0:01:06]} Qc6 {[%emt 0:08:12]} 17. Qb3 {[%emt 0:04:54]} h6 {[%emt 0:17:17]} 1/2-1/2